[Event "Late-Titled-Tuesday-Blitz-October-17-2023"]
[Site "Chess.com"]
[Date "2023.10.17"]
[Round "6"]
[White "AryanTari"]
[Black "FabianoCaruana"]
[Result "0-1"]
[WhiteElo "2955"]
[BlackElo "3105"]
[TimeControl "180+1"]
[EndTime "15:07:37 PDT"]
[Termination "FabianoCaruana won on time"]

1. e4 {[%clk 0:02:54.8]} 1... c5 {[%clk 0:03:00.2]} 2. Nf3 {[%clk 0:02:54.5]}
2... d6 {[%clk 0:03:00.8]} 3. Bb5+ {[%clk 0:02:52.4]} 3... Nd7 {[%clk
0:03:00.6]} 4. O-O {[%clk 0:02:48.5]} 4... a6 {[%clk 0:02:59.6]} 5. Bd3 {[%clk
0:02:48.9]} 5... Ngf6 {[%clk 0:02:59.4]} 6. Re1 {[%clk 0:02:43.3]} 6... g6
{[%clk 0:02:54.5]} 7. Bf1 {[%clk 0:02:42]} 7... Bg7 {[%clk 0:02:54.1]} 8. c4
{[%clk 0:02:42.1]} 8... e5 {[%clk 0:02:46.8]} 9. Nc3 {[%clk 0:02:41.1]} 9... O-O
{[%clk 0:02:47.1]} 10. a3 {[%clk 0:02:39.2]} 10... h6 {[%clk 0:02:27.9]} 11. b4
{[%clk 0:02:38.9]} 11... Nh7 {[%clk 0:02:28.1]} 12. Nd5 {[%clk 0:02:34.5]} 12...
f5 {[%clk 0:02:19.3]} 13. d3 {[%clk 0:02:34.9]} 13... f4 {[%clk 0:02:18.9]} 14.
Bb2 {[%clk 0:02:05.3]} 14... b6 {[%clk 0:02:12.8]} 15. bxc5 {[%clk 0:01:51.9]}
15... bxc5 {[%clk 0:02:13.7]} 16. Qa4 {[%clk 0:01:48.5]} 16... Ndf6 {[%clk
0:02:11.5]} 17. Qc6 {[%clk 0:01:34.7]} 17... Rb8 {[%clk 0:01:54.5]} 18. Reb1
{[%clk 0:01:33.9]} 18... Bb7 {[%clk 0:01:50.5]} 19. Qa4 {[%clk 0:01:32.7]} 19...
g5 {[%clk 0:01:43.7]} 20. Bc3 {[%clk 0:01:31.4]} 20... g4 {[%clk 0:01:41]} 21.
Nd2 {[%clk 0:01:29.7]} 21... g3 {[%clk 0:01:32.6]} 22. fxg3 {[%clk 0:00:59.4]}
22... fxg3 {[%clk 0:01:30.7]} 23. Ba5 {[%clk 0:00:57.9]} 23... gxh2+ {[%clk
0:01:30]} 24. Kh1 {[%clk 0:00:57.7]} 24... Qe8 {[%clk 0:01:19.7]} 25. Qxe8
{[%clk 0:00:56.4]} 25... Rfxe8 {[%clk 0:01:20.6]} 26. Bc7 {[%clk 0:00:55.5]}
26... Rbc8 {[%clk 0:01:09.5]} 27. Rxb7 {[%clk 0:00:32.9]} 27... Nxd5 {[%clk
0:01:08.9]} 28. cxd5 {[%clk 0:00:28.3]} 28... Re7 {[%clk 0:01:09.1]} 29. Nc4
{[%clk 0:00:27.3]} 29... Rexc7 {[%clk 0:01:04.6]} 30. Rxc7 {[%clk 0:00:27.9]}
30... Rxc7 {[%clk 0:01:05.5]} 31. Nxd6 {[%clk 0:00:28.6]} 31... Nf6 {[%clk
0:01:00.2]} 32. Be2 {[%clk 0:00:28.7]} 32... Bf8 {[%clk 0:00:49.2]} 33. Nc4
{[%clk 0:00:28.7]} 33... Rb7 {[%clk 0:00:49.7]} 34. Kxh2 {[%clk 0:00:28.8]}
34... Kg7 {[%clk 0:00:43.6]} 35. Bd1 {[%clk 0:00:24.3]} 35... Be7 {[%clk
0:00:35.2]} 36. Ba4 {[%clk 0:00:21.4]} 36... Ng4+ {[%clk 0:00:24.1]} 37. Kg3
{[%clk 0:00:20.7]} 37... h5 {[%clk 0:00:24.3]} 38. Rh1 {[%clk 0:00:18.2]} 38...
Kh6 {[%clk 0:00:20.3]} 39. Be8 {[%clk 0:00:16.7]} 39... Nf6 {[%clk 0:00:20.3]}
40. Ba4 {[%clk 0:00:15.5]} 40... Bd8 {[%clk 0:00:20.7]} 41. Kf3 {[%clk 0:00:15]}
41... Ng4 {[%clk 0:00:18.7]} 42. Ke2 {[%clk 0:00:15.1]} 42... Rg7 {[%clk
0:00:15.9]} 43. Rf1 {[%clk 0:00:15.2]} 43... Bg5 {[%clk 0:00:13.6]} 44. Nd6
{[%clk 0:00:15.5]} 44... Kh7 {[%clk 0:00:09.4]} 45. Rh1 {[%clk 0:00:11.4]} 45...
Nf6 {[%clk 0:00:07.3]} 46. Nf5 {[%clk 0:00:10.8]} 46... Rb7 {[%clk 0:00:07.4]}
47. d6 {[%clk 0:00:10.2]} 47... Rb2+ {[%clk 0:00:07.4]} 48. Kf3 {[%clk
0:00:10.7]} 48... Kg6 {[%clk 0:00:06.9]} 49. Be8+ {[%clk 0:00:07.2]} 49... Nxe8
{[%clk 0:00:06.8]} 50. d7 {[%clk 0:00:07.7]} 50... Nc7 {[%clk 0:00:06.1]} 51.
Rc1 {[%clk 0:00:07.5]} 51... Ne6 {[%clk 0:00:05.5]} 52. Rc4 {[%clk 0:00:07.5]}
52... Rb7 {[%clk 0:00:04.4]} 53. Ra4 {[%clk 0:00:07.6]} 53... Rxd7 {[%clk
0:00:04.6]} 54. Rxa6 {[%clk 0:00:08]} 54... Kf7 {[%clk 0:00:05.2]} 55. Nd6+
{[%clk 0:00:08.4]} 55... Ke7 {[%clk 0:00:05.1]} 56. Nf5+ {[%clk 0:00:09]} 56...
Kf6 {[%clk 0:00:05.7]} 57. Ke2 {[%clk 0:00:08.3]} 57... h4 {[%clk 0:00:05]} 58.
a4 {[%clk 0:00:08.3]} 58... Rb7 {[%clk 0:00:05.3]} 59. a5 {[%clk 0:00:08.5]}
59... Rb2+ {[%clk 0:00:05.3]} 60. Kf3 {[%clk 0:00:09.1]} 60... Rb3 {[%clk
0:00:05.6]} 61. Rd6 {[%clk 0:00:09.3]} 61... c4 {[%clk 0:00:05.3]} 62. a6 {[%clk
0:00:08.8]} 62... cxd3 {[%clk 0:00:05.8]} 63. Kg4 {[%clk 0:00:07]} 63... d2
{[%clk 0:00:05.4]} 64. Rd7 {[%clk 0:00:03.4]} 64... Ra3 {[%clk 0:00:04.7]} 65.
Nd6 {[%clk 0:00:03]} 65... Rxa6 {[%clk 0:00:04.3]} 66. Ne8+ {[%clk 0:00:02.1]}
66... Kg6 {[%clk 0:00:04.7]} 0-1

[Event "Late-Titled-Tuesday-Blitz-October-17-2023"]
[Site "Chess.com"]
[Date "2023.10.17"]
[Round "6"]
[White "Sokoloco"]
[Black "aNaartjieZA"]
[Result "0-1"]
[WhiteElo "2695"]
[BlackElo "2544"]
[TimeControl "180+1"]
[EndTime "15:07:41 PDT"]
[Termination "aNaartjieZA won by resignation"]

1. b3 {[%clk 0:03:00.9]} 1... e5 {[%clk 0:02:58.7]} 2. Bb2 {[%clk 0:03:01.8]}
2... d6 {[%clk 0:02:59.1]} 3. e3 {[%clk 0:03:02]} 3... Nf6 {[%clk 0:02:58.7]} 4.
d4 {[%clk 0:02:58.8]} 4... Nbd7 {[%clk 0:02:58.5]} 5. c4 {[%clk 0:02:57.4]} 5...
g6 {[%clk 0:02:54.9]} 6. Nf3 {[%clk 0:02:35.9]} 6... Bg7 {[%clk 0:02:54.5]} 7.
dxe5 {[%clk 0:02:24.8]} 7... Ng4 {[%clk 0:02:54.1]} 8. Nc3 {[%clk 0:02:25.5]}
8... Ndxe5 {[%clk 0:02:49.2]} 9. Be2 {[%clk 0:02:21.9]} 9... O-O {[%clk
0:02:48.6]} 10. h3 {[%clk 0:02:08.1]} 10... Nxf3+ {[%clk 0:02:47]} 11. Bxf3
{[%clk 0:02:09]} 11... Ne5 {[%clk 0:02:47.1]} 12. O-O {[%clk 0:02:09.8]} 12...
Nxf3+ {[%clk 0:02:44.7]} 13. Qxf3 {[%clk 0:02:10.7]} 13... Qf6 {[%clk
0:02:28.8]} 14. Qe2 {[%clk 0:02:01.9]} 14... Bd7 {[%clk 0:02:26]} 15. Rad1
{[%clk 0:01:56.5]} 15... Bc6 {[%clk 0:02:21.9]} 16. Rd2 {[%clk 0:01:57]} 16...
Qg5 {[%clk 0:02:18]} 17. Qg4 {[%clk 0:01:16.3]} 17... Qxg4 {[%clk 0:02:09.8]}
18. hxg4 {[%clk 0:01:17.2]} 18... Bxc3 {[%clk 0:02:09.5]} 19. Bxc3 {[%clk
0:01:16.3]} 19... Rfe8 {[%clk 0:02:09.5]} 20. Re1 {[%clk 0:01:15.5]} 20... a5
{[%clk 0:02:05.2]} 21. a4 {[%clk 0:01:11.5]} 21... Re6 {[%clk 0:01:56.4]} 22. f3
{[%clk 0:01:08]} 22... Rae8 {[%clk 0:01:50.7]} 23. Kf2 {[%clk 0:00:58.3]} 23...
b6 {[%clk 0:01:50.4]} 24. g5 {[%clk 0:00:44.8]} 24... Kf8 {[%clk 0:01:32.6]} 25.
Rh1 {[%clk 0:00:38.3]} 25... Rxe3 {[%clk 0:01:23.7]} 26. Bf6 {[%clk 0:00:38.9]}
26... Kg8 {[%clk 0:01:12.2]} 27. Rd4 {[%clk 0:00:34.9]} 27... Re2+ {[%clk
0:01:01.1]} 28. Kg3 {[%clk 0:00:34.4]} 28... h5 {[%clk 0:00:42.8]} 29. gxh6
{[%clk 0:00:34.8]} 29... Kh7 {[%clk 0:00:42.3]} 30. Rf4 {[%clk 0:00:35.5]} 30...
Rc2 {[%clk 0:00:30.6]} 31. Rg1 {[%clk 0:00:14.7]} 31... Bd7 {[%clk 0:00:26.5]}
32. Bg7 {[%clk 0:00:10.3]} 32... Bf5 {[%clk 0:00:25.5]} 33. Kh4 {[%clk
0:00:08.5]} 33... Ree2 {[%clk 0:00:19.7]} 34. g4 {[%clk 0:00:08.2]} 34... Be6
{[%clk 0:00:19.9]} 35. Kg5 {[%clk 0:00:08.2]} 35... Re3 {[%clk 0:00:16.5]} 36.
Kf6 {[%clk 0:00:06.8]} 36... Rxb3 {[%clk 0:00:16.4]} 37. Re1 {[%clk 0:00:07.4]}
37... Rf2 {[%clk 0:00:14.4]} 38. Rxe6 {[%clk 0:00:02.5]} 38... fxe6 {[%clk
0:00:14.9]} 39. Kxe6 {[%clk 0:00:03.4]} 39... Rfxf3 {[%clk 0:00:15.2]} 40. Rd4
{[%clk 0:00:03.4]} 40... Rbe3+ {[%clk 0:00:13.2]} 41. Kd7 {[%clk 0:00:03.7]}
41... Rf7+ {[%clk 0:00:13.3]} 42. Kc6 {[%clk 0:00:03.8]} 42... Ra3 {[%clk
0:00:13.2]} 43. Re4 {[%clk 0:00:02.5]} 43... Rxa4 {[%clk 0:00:13.5]} 44. Re8
{[%clk 0:00:02.8]} 44... Rxg7 {[%clk 0:00:13.9]} 45. hxg7 {[%clk 0:00:03.7]}
45... Rxc4+ {[%clk 0:00:13.8]} 46. Kd5 {[%clk 0:00:02]} 46... Rc5+ {[%clk
0:00:14]} 47. Kd4 {[%clk 0:00:02.9]} 47... Kxg7 {[%clk 0:00:14.1]} 48. g5 {[%clk
0:00:02.9]} 48... Rxg5 {[%clk 0:00:13.2]} 49. Re7+ {[%clk 0:00:03.6]} 49... Kf6
{[%clk 0:00:13.5]} 50. Rxc7 {[%clk 0:00:04.5]} 50... Rc5 {[%clk 0:00:13.8]} 51.
Rb7 {[%clk 0:00:03.8]} 51... b5 {[%clk 0:00:13.9]} 52. Ra7 {[%clk 0:00:04.2]}
52... a4 {[%clk 0:00:13.8]} 53. Ra6 {[%clk 0:00:05.1]} 53... Ke6 {[%clk
0:00:13.9]} 54. Ra8 {[%clk 0:00:05.9]} 54... g5 {[%clk 0:00:14.1]} 55. Rg8
{[%clk 0:00:05.5]} 55... b4 {[%clk 0:00:13.7]} 56. Rb8 {[%clk 0:00:05.4]} 56...
b3 {[%clk 0:00:13.6]} 57. Kd3 {[%clk 0:00:05.7]} 57... g4 {[%clk 0:00:12]} 58.
Rg8 {[%clk 0:00:04.8]} 58... Ra5 {[%clk 0:00:11.8]} 59. Rxg4 {[%clk 0:00:04.7]}
59... a3 {[%clk 0:00:12]} 60. Re4+ {[%clk 0:00:05.3]} 60... Kd7 {[%clk
0:00:11.6]} 61. Kc3 {[%clk 0:00:04.2]} 61... a2 {[%clk 0:00:11.7]} 62. Re1
{[%clk 0:00:04.9]} 62... a1=Q+ {[%clk 0:00:11.9]} 63. Rxa1 {[%clk 0:00:05.7]}
63... Rxa1 {[%clk 0:00:12]} 64. Kxb3 {[%clk 0:00:06.6]} 64... Rc1 {[%clk
0:00:12.4]} 65. Kb2 {[%clk 0:00:07.5]} 65... Rc5 {[%clk 0:00:12.9]} 66. Kb3
{[%clk 0:00:08.1]} 66... d5 {[%clk 0:00:13.1]} 67. Kb4 {[%clk 0:00:07]} 67...
Kc6 {[%clk 0:00:14]} 68. Kb3 {[%clk 0:00:07.9]} 68... d4 {[%clk 0:00:14.3]} 0-1

[Event "Late-Titled-Tuesday-Blitz-October-17-2023"]
[Site "Chess.com"]
[Date "2023.10.17"]
[Round "6"]
[White "borocotoajua"]
[Black "Kale36"]
[Result "1-0"]
[WhiteElo "2577"]
[BlackElo "2316"]
[TimeControl "180+1"]
[EndTime "15:07:54 PDT"]
[Termination "borocotoajua won by checkmate"]

1. d4 {[%clk 0:02:58.3]} 1... Nc6 {[%clk 0:02:42.1]} 2. d5 {[%clk 0:02:54.7]}
2... Ne5 {[%clk 0:02:41.6]} 3. Nf3 {[%clk 0:02:54.3]} 3... Nxf3+ {[%clk
0:02:41.5]} 4. exf3 {[%clk 0:02:55.2]} 4... e6 {[%clk 0:02:41.9]} 5. Nc3 {[%clk
0:02:51.7]} 5... Bb4 {[%clk 0:02:40.7]} 6. Bd3 {[%clk 0:02:47.6]} 6... Nf6
{[%clk 0:02:40.1]} 7. dxe6 {[%clk 0:02:43]} 7... dxe6 {[%clk 0:02:40.2]} 8. O-O
{[%clk 0:02:41.4]} 8... Bxc3 {[%clk 0:02:40.4]} 9. bxc3 {[%clk 0:02:40.9]} 9...
h6 {[%clk 0:02:40.5]} 10. Ba3 {[%clk 0:02:39.4]} 10... b6 {[%clk 0:02:36.4]} 11.
Re1 {[%clk 0:02:36.8]} 11... c5 {[%clk 0:02:35.3]} 12. c4 {[%clk 0:02:24.1]}
12... O-O {[%clk 0:02:33.4]} 13. Bb2 {[%clk 0:02:20.3]} 13... Bb7 {[%clk
0:02:24.1]} 14. Qe2 {[%clk 0:02:16.5]} 14... Qe7 {[%clk 0:02:18.2]} 15. a4
{[%clk 0:02:16.2]} 15... a5 {[%clk 0:02:14.6]} 16. Bc3 {[%clk 0:01:51.5]} 16...
Bc6 {[%clk 0:02:06.8]} 17. Qe5 {[%clk 0:01:45.3]} 17... Rfd8 {[%clk 0:02:00]}
18. Reb1 {[%clk 0:01:32.3]} 18... Rab8 {[%clk 0:01:52.5]} 19. Rb2 {[%clk
0:01:17.3]} 19... Ne8 {[%clk 0:01:40.8]} 20. Qg3 {[%clk 0:01:08.1]} 20... f5
{[%clk 0:01:21.5]} 21. Bxa5 {[%clk 0:00:58]} 21... Qf6 {[%clk 0:01:13.2]} 22.
Rab1 {[%clk 0:00:54.6]} 22... Bxa4 {[%clk 0:01:11.4]} 23. Bxb6 {[%clk 0:00:49]}
23... Rdc8 {[%clk 0:00:57.7]} 24. f4 {[%clk 0:00:36.9]} 24... Bc6 {[%clk
0:00:48.4]} 25. Qe3 {[%clk 0:00:34.7]} 25... Nd6 {[%clk 0:00:45.2]} 26. h3
{[%clk 0:00:27.4]} 26... Ne4 {[%clk 0:00:42.8]} 27. f3 {[%clk 0:00:23]} 27...
Ng3 {[%clk 0:00:30.8]} 28. Kh2 {[%clk 0:00:13.7]} 28... Nh5 {[%clk 0:00:29]} 29.
Qe5 {[%clk 0:00:13.8]} 29... Qf7 {[%clk 0:00:20.1]} 30. Bxc5 {[%clk 0:00:11.9]}
30... Rxb2 {[%clk 0:00:19.5]} 31. Rxb2 {[%clk 0:00:12.8]} 31... Be8 {[%clk
0:00:13.1]} 32. Bd4 {[%clk 0:00:12.9]} 32... Nf6 {[%clk 0:00:12.2]} 33. Rb6
{[%clk 0:00:12]} 33... Rd8 {[%clk 0:00:11.7]} 34. c5 {[%clk 0:00:10.1]} 34...
Qd7 {[%clk 0:00:11.6]} 35. Rd6 {[%clk 0:00:09.4]} 35... Qc7 {[%clk 0:00:11.3]}
36. Rxd8 {[%clk 0:00:08.4]} 36... Qxd8 {[%clk 0:00:12.2]} 37. Qxe6+ {[%clk
0:00:08.8]} 37... Bf7 {[%clk 0:00:12]} 38. Qd6 {[%clk 0:00:08.8]} 38... Qe8
{[%clk 0:00:11.8]} 39. Bxf6 {[%clk 0:00:08.7]} 39... gxf6 {[%clk 0:00:11.6]} 40.
Qxf6 {[%clk 0:00:09.6]} 40... Qe1 {[%clk 0:00:11.3]} 41. Qxf5 {[%clk 0:00:09.2]}
41... Qh4 {[%clk 0:00:11.1]} 42. Qh7+ {[%clk 0:00:08.9]} 42... Kf8 {[%clk
0:00:11.2]} 43. Qh8+ {[%clk 0:00:09.8]} 43... Ke7 {[%clk 0:00:10.5]} 44. Qe5+
{[%clk 0:00:10.7]} 44... Kf8 {[%clk 0:00:10.5]} 45. Qd6+ {[%clk 0:00:10.6]}
45... Kg7 {[%clk 0:00:10.1]} 46. g3 {[%clk 0:00:09.7]} 46... Qh5 {[%clk
0:00:08.4]} 47. Qe5+ {[%clk 0:00:10.6]} 47... Qxe5 {[%clk 0:00:08]} 48. fxe5
{[%clk 0:00:11.5]} 48... Bd5 {[%clk 0:00:08.1]} 49. f4 {[%clk 0:00:12.4]} 49...
h5 {[%clk 0:00:07.8]} 50. Kg1 {[%clk 0:00:12.5]} 50... h4 {[%clk 0:00:08.7]} 51.
g4 {[%clk 0:00:12.3]} 51... Kf8 {[%clk 0:00:07.9]} 52. Kf2 {[%clk 0:00:12.7]}
52... Ke7 {[%clk 0:00:08.8]} 53. Be2 {[%clk 0:00:13.1]} 53... Ke6 {[%clk
0:00:08.1]} 54. Bf3 {[%clk 0:00:13.6]} 54... Bc4 {[%clk 0:00:08]} 55. Ke3 {[%clk
0:00:13.4]} 55... Kd7 {[%clk 0:00:08.9]} 56. Be2 {[%clk 0:00:12]} 56... Bd5
{[%clk 0:00:08.6]} 57. Bf3 {[%clk 0:00:11.9]} 57... Bc4 {[%clk 0:00:08.8]} 58.
g5 {[%clk 0:00:12.4]} 58... Bf1 {[%clk 0:00:08.9]} 59. Bg4+ {[%clk 0:00:12.6]}
59... Ke7 {[%clk 0:00:08.8]} 60. Kd4 {[%clk 0:00:13.5]} 60... Kf8 {[%clk
0:00:09.3]} 61. f5 {[%clk 0:00:13.9]} 61... Kg7 {[%clk 0:00:10.2]} 62. c6 {[%clk
0:00:14]} 62... Kf8 {[%clk 0:00:10.3]} 63. c7 {[%clk 0:00:13.7]} 63... Ke7
{[%clk 0:00:10.9]} 64. c8=Q {[%clk 0:00:13.2]} 64... Bc4 {[%clk 0:00:10.2]} 65.
Qd7+ {[%clk 0:00:13.2]} 65... Kxd7 {[%clk 0:00:10]} 66. Kxc4 {[%clk 0:00:12.4]}
66... Ke7 {[%clk 0:00:10.4]} 67. e6 {[%clk 0:00:12.4]} 67... Kd6 {[%clk
0:00:10.5]} 68. g6 {[%clk 0:00:12]} 68... Ke5 {[%clk 0:00:11.4]} 69. g7 {[%clk
0:00:12]} 69... Kf6 {[%clk 0:00:12.3]} 70. g8=Q {[%clk 0:00:11.7]} 70... Ke5
{[%clk 0:00:12.6]} 71. e7 {[%clk 0:00:11.8]} 71... Kf4 {[%clk 0:00:13.5]} 72.
e8=Q {[%clk 0:00:10.6]} 72... Kg3 {[%clk 0:00:14.4]} 73. Bh5+ {[%clk 0:00:10.3]}
73... Kf2 {[%clk 0:00:15.3]} 74. Qg4 {[%clk 0:00:08.4]} 74... Kf1 {[%clk
0:00:14.7]} 75. Qee2# {[%clk 0:00:08.9]} 1-0

[Event "Late-Titled-Tuesday-Blitz-October-17-2023"]
[Site "Chess.com"]
[Date "2023.10.17"]
[Round "6"]
[White "NigelDwarf"]
[Black "GMKrikor"]
[Result "1-0"]
[WhiteElo "2568"]
[BlackElo "2812"]
[TimeControl "180+1"]
[EndTime "15:07:57 PDT"]
[Termination "NigelDwarf won on time"]

1. Nf3 {[%clk 0:03:00.9]} 1... d5 {[%clk 0:02:57.4]} 2. c4 {[%clk 0:02:58.4]}
2... d4 {[%clk 0:02:55.1]} 3. b4 {[%clk 0:02:55.2]} 3... c5 {[%clk 0:02:53.2]}
4. e3 {[%clk 0:02:54.7]} 4... dxe3 {[%clk 0:02:52.7]} 5. fxe3 {[%clk 0:02:55.6]}
5... cxb4 {[%clk 0:02:53.4]} 6. d4 {[%clk 0:02:55.6]} 6... e6 {[%clk 0:02:45.7]}
7. Bd3 {[%clk 0:02:54.9]} 7... Nf6 {[%clk 0:02:43.9]} 8. O-O {[%clk 0:02:54.8]}
8... Nc6 {[%clk 0:02:43]} 9. Bb2 {[%clk 0:02:54.6]} 9... Be7 {[%clk 0:02:36.1]}
10. Qe2 {[%clk 0:02:51.3]} 10... O-O {[%clk 0:02:13.1]} 11. Nbd2 {[%clk
0:02:50.9]} 11... a5 {[%clk 0:02:12.8]} 12. e4 {[%clk 0:02:45.5]} 12... a4
{[%clk 0:01:57.2]} 13. e5 {[%clk 0:02:31.8]} 13... a3 {[%clk 0:01:51.1]} 14.
exf6 {[%clk 0:02:30.1]} 14... Bxf6 {[%clk 0:01:52]} 15. Qe4 {[%clk 0:02:17.3]}
15... g6 {[%clk 0:01:46.7]} 16. Bc1 {[%clk 0:02:16]} 16... Nxd4 {[%clk
0:01:44.9]} 17. Rb1 {[%clk 0:02:14.4]} 17... Nc6 {[%clk 0:01:34.7]} 18. Nb3
{[%clk 0:02:03.2]} 18... e5 {[%clk 0:01:30.3]} 19. Qe2 {[%clk 0:01:34.8]} 19...
Bg7 {[%clk 0:01:28.5]} 20. Bg5 {[%clk 0:01:26.5]} 20... Qc7 {[%clk 0:01:28.3]}
21. c5 {[%clk 0:01:20.4]} 21... f5 {[%clk 0:01:25.4]} 22. Bc4+ {[%clk
0:01:19.9]} 22... Kh8 {[%clk 0:01:26.1]} 23. Nh4 {[%clk 0:01:00.8]} 23... e4
{[%clk 0:01:07.7]} 24. Qe3 {[%clk 0:00:48]} 24... Ne5 {[%clk 0:00:59.2]} 25. Bd5
{[%clk 0:00:40.9]} 25... Ra6 {[%clk 0:00:31]} 26. Rbd1 {[%clk 0:00:33.8]} 26...
Ng4 {[%clk 0:00:28.8]} 27. Qh3 {[%clk 0:00:32.2]} 27... h6 {[%clk 0:00:18.8]}
28. c6 {[%clk 0:00:22.6]} 28... Rxc6 {[%clk 0:00:18.7]} 29. Bxc6 {[%clk
0:00:20.1]} 29... Qxc6 {[%clk 0:00:19.6]} 30. Be7 {[%clk 0:00:16]} 30... Kh7
{[%clk 0:00:10.8]} 31. Rd6 {[%clk 0:00:14]} 31... Qc2 {[%clk 0:00:07.5]} 32.
Nxg6 {[%clk 0:00:12.3]} 32... Re8 {[%clk 0:00:06.5]} 33. Bf6 {[%clk 0:00:08.9]}
33... Qxa2 {[%clk 0:00:05.8]} 34. Bxg7 {[%clk 0:00:08.3]} 34... Kxg7 {[%clk
0:00:06.4]} 35. Nf4 {[%clk 0:00:07.6]} 35... e3 {[%clk 0:00:05.9]} 36. Rg6+
{[%clk 0:00:07.2]} 36... Kh7 {[%clk 0:00:05.8]} 37. Rc1 {[%clk 0:00:03.8]} 37...
Bd7 {[%clk 0:00:03.3]} 38. Rd6 {[%clk 0:00:02.9]} 38... Re7 {[%clk 0:00:03.2]}
39. Qh5 {[%clk 0:00:02.5]} 39... Qxb3 {[%clk 0:00:02.2]} 40. Qg6+ {[%clk
0:00:02.4]} 40... Kh8 {[%clk 0:00:01.9]} 41. Rf6 {[%clk 0:00:02.7]} 41... Qg8
{[%clk 0:00:01.6]} 42. Qh5 {[%clk 0:00:01.6]} 42... Rg7 {[%clk 0:00:01.8]} 43.
Ng6+ {[%clk 0:00:01.6]} 43... Rxg6 {[%clk 0:00:01.8]} 44. Rxg6 {[%clk
0:00:01.9]} 44... Qf8 {[%clk 0:00:02.5]} 45. Rxg4 {[%clk 0:00:01.8]} 45... fxg4
{[%clk 0:00:02.7]} 46. Qe5+ {[%clk 0:00:02.3]} 46... Qg7 {[%clk 0:00:02.8]} 47.
Qb8+ {[%clk 0:00:02.4]} 47... Kh7 {[%clk 0:00:02.9]} 48. Qxb7 {[%clk 0:00:02.6]}
48... Bf5 {[%clk 0:00:02.7]} 49. Rc7 {[%clk 0:00:02.6]} 49... Qxc7 {[%clk
0:00:02.9]} 50. Qxc7+ {[%clk 0:00:03.5]} 50... Kg6 {[%clk 0:00:03.7]} 51. Qd6+
{[%clk 0:00:03.8]} 51... Kg5 {[%clk 0:00:03.9]} 52. Qxb4 {[%clk 0:00:04.1]}
52... a2 {[%clk 0:00:04.5]} 53. Qa3 {[%clk 0:00:04]} 53... Bb1 {[%clk
0:00:04.9]} 54. Qxe3+ {[%clk 0:00:04.1]} 54... Kf5 {[%clk 0:00:05.6]} 55. Qc3
{[%clk 0:00:04.5]} 55... h5 {[%clk 0:00:05.8]} 56. Kf2 {[%clk 0:00:04.8]} 56...
h4 {[%clk 0:00:06.2]} 57. Qa1 {[%clk 0:00:05]} 57... Kf4 {[%clk 0:00:05.8]} 58.
g3+ {[%clk 0:00:05.3]} 58... hxg3+ {[%clk 0:00:06.2]} 59. hxg3+ {[%clk
0:00:06.2]} 59... Ke4 {[%clk 0:00:07.1]} 60. Qb2 {[%clk 0:00:06.2]} 60... Kd3
{[%clk 0:00:06.8]} 61. Ke1 {[%clk 0:00:05.5]} 61... Ke3 {[%clk 0:00:07.1]} 62.
Qe5+ {[%clk 0:00:05.4]} 62... Kf3 {[%clk 0:00:06.6]} 63. Kd2 {[%clk 0:00:05.1]}
63... Kg2 {[%clk 0:00:05.1]} 64. Kc1 {[%clk 0:00:04.8]} 64... Kh3 {[%clk
0:00:03.2]} 65. Kb2 {[%clk 0:00:04.3]} 65... Kg2 {[%clk 0:00:03.3]} 66. Qf4
{[%clk 0:00:04.2]} 66... Kh3 {[%clk 0:00:03.8]} 67. Qe5 {[%clk 0:00:03.3]} 67...
Kg2 {[%clk 0:00:04.2]} 68. Qe3 {[%clk 0:00:01.8]} 68... Kh3 {[%clk 0:00:02.9]}
69. Qf2 {[%clk 0:00:02.2]} 1-0